Cogmind - Beta 13 @@@ ROGUE MODE // 2024.03.17 @ 15:34:10 Player: NitroKuite Result: Destroyed by G-47 Trooper with Particle Gun Performance ------------- Evolutions (2) 1000 Regions Visited (4) 800 Robots Destroyed (30) 150 Value Destroyed (738) 738 Prototype IDs (3) 60 Alien Tech Used (0) 0 Bonus (0) 0 TOTAL SCORE: 2748 Bonus ------- None Cogmind --------- Core Integrity 0/550 Matter 300/300 Energy 100/100 System Corruption 0% Temperature Cool (9) Movement Core (50) Location -8/Materials Parts ------- > --- POWER (2) -------- (None) > --- PROPULSION (4) --- (None) > --- UTILITY (3) ------ Terrain Scan Processor Terrain Scan Processor > --- WEAPON (2) ------- (None) > --- INVENTORY (5) ---- Cooling System Medium Battery (150) Improved Targeting Computer Peak State ------------ > --- POWER ------------ Ion Engine > --- PROPULSION ------- Wheel > --- UTILITY ---------- Experimental Sensor Array Terrain Scan Processor Terrain Scan Processor > --- WEAPON ----------- Hammer Makeshift Hammer > --- INVENTORY -------- Cooling System Medium Battery Improved Targeting Computer Mace [Rating: 20] Favorites ----------- Power Ion Engine Engine Ion Engine Propulsion Wheel Wheel Wheel Utility Terrain Scan Processor Device Cooling System Storage Small Storage Unit Processor Terrain Scan Processor Weapon EM Pulse Gun Energy Gun EM Pulse Gun Energy Cannon Beam Cannon Launcher Grenade Launcher Impact Weapon Makeshift Hammer Build | -11 -10 -9 -9 -8 ------- Run | Yrd Mat Mat Min Mat Slots Evolved 4 | . . 2 . 2 Power 1 | . . . . 1 Propulsion 2 | . . 1 . 1 Utility 1 | . . 1 . . Weapon . | . . . . . Parts Attached 34 | 7 5 12 9 1 Power 4 | 1 1 1 1 . Engine 4 | 1 1 1 1 . Core . | . . . . . Reactor . | . . . . . Propulsion 10 | 2 1 3 4 . Treads . | . . . . . Leg . | . . . . . Wheel 10 | 2 1 3 4 . Hover . | . . . . . Flight . | . . . . . Utility 8 | 2 1 3 2 . Device 5 | 1 1 2 1 . Storage 1 | 1 . . . . Processor 2 | . . 1 1 . Hackware . | . . . . . Protection . | . . . . . Artifact . | . . . . . Weapon 12 | 2 2 5 2 1 Energy Gun 5 | 2 1 2 . . Energy Cannon 3 | . . 3 . . Ballistic Gun . | . . . . . Ballistic Cannon . | . . . . . Launcher 1 | . 1 . . . Special Weapon . | . . . . . Impact Weapon 3 | . . . 2 1 Slashing Weapon . | . . . . . Piercing Weapon . | . . . . . Special Melee Weapon . | . . . . . Unidentified Prototypes 3 | . . 2 1 . Parts Lost 14 | . . 3 5 6 Power 2 | . . . 1 1 Propulsion 6 | . . 2 3 1 Utility 3 | . . 1 1 1 Weapon 3 | . . . . 3 Highest Loss Streak 5 | . . 2 5 3 To Critical Strikes 1 | . . . . 1 Average Slot Usage (%) 91 | . 97 97 93 50 Engine 10 | . 13 11 10 5 Wheel 26 | . 27 30 27 5 Device 11 | . 14 11 11 8 Storage 9 | . 14 11 8 . Processor 10 | . . 10 12 18 Energy Gun 6 | . 20 6 2 . Energy Cannon 6 | . . 14 . . Launcher 1 | . 6 1 . . Impact Weapon 6 | . . . 19 13 Naked Turns . | . . . . . Heaviest Build 22 | 15 16 22 21 11 Greatest Support 42 | 32 32 42 42 10 Greatest Overweight (x) 3 | 3 . . 3 1 Average Overweight (x) . | . . . . . Largest Inventory Capacity 8 | 8 8 8 8 5 Average Capacity 7 | 7 8 8 7 5 Most Carried 8 | 6 8 8 8 4 Average Carried 5 | 1 5 6 6 3 Final Capacity 8 | 8 8 8 5 5 Final Carried 8 | 6 7 8 4 3 Class Distribution -------------------- 100% | Mutant Dominant Class ---------------- Mutant | -10/Materials Mutant | -9/Materials Mutant | -9/Mines Mutant | -8/Materials Resources | -11 -10 -9 -9 -8 ----------- Run | Yrd Mat Mat Min Mat Matter Collected 555 | 270 83 152 50 . Remotely . | . . . . . Salvage Created 898 | 178 136 469 79 36 Parts 52 | 10 11 28 . 3 Haulers Intercepted . | . . . . . Recyclers Shooed . | . . . . . Parts Field Recycled . | . . . . . Retrieved Matter . | . . . . . Parts Self-Destructed . | . . . . . Prevented . | . . . . . Kills | -11 -10 -9 -9 -8 ------- Run | Yrd Mat Mat Min Mat Combat Hostiles Destroyed 26 | . 7 11 7 1 Melee 3 | . . . 3 . Guns 1 | . 1 . . . Cannons 11 | . . 11 . . AOE 7 | . 6 . . 1 Classes Destroyed 6 | 3 2 1 . . Worker 2 | 2 . . . . Tunneler 1 | 1 . . . . Recycler 1 | 1 . . . . Swarmer 10 | . 3 . 7 . Grunt 13 | . 4 9 . . Sentry 3 | . . 2 . 1 Best Kill Streak 5 | 3 5 5 4 1 Combat Bots Only 5 | . 5 5 4 1 Max Kills in Single Turn 2 | 1 2 1 1 1 Gunslinging . | . . . . . Exploded 2 | . 2 . . 1 Melee 1 | . . . 1 . Uniques/NPCs Destroyed . | . . . . . Combat | -11 -10 -9 -9 -8 -------- Run | Yrd Mat Mat Min Mat Hostile Shots Fired 253 | . 32 55 68 98 Missed 65 | . 16 12 11 26 Damage Taken 2240 | 35 175 586 461 983 Core 860 | . 43 119 144 554 Absorbed by Shields . | . . . . . Core Remaining (%) 72 | 100 82 . 34 . Volleys Fired 55 | 11 11 33 . . Largest 2 | 2 2 2 . . Hottest 128 | 80 70 128 . . Shots Fired 107 | 22 19 66 . . Gun 33 | 22 11 . . . Cannon 66 | . . 66 . . Launcher 8 | . 8 . . . Special . | . . . . . Kinetic . | . . . . . Thermal 66 | . . 66 . . Explosive 8 | . 8 . . . Electromagnetic 33 | 22 11 . . . Robot Hit Streak 6 | 5 6 5 . . Robot Miss Streak 4 | 2 4 4 . . Penetration Max . | . . . . . Secondary Targets . | . . . . . Shots Hit Robots 75 | 14 10 33 11 7 Core Hits 36 | 5 11 12 . 8 Critical Kills . | . . . . . Critical Parts Destroyed . | . . . . . Critical Strikes . | . . . . . Melee Attacks 36 | . . . 26 10 Impact 36 | . . . 26 10 Slashing . | . . . . . Piercing . | . . . . . Sneak Attacks . | . . . . . Combat Hostiles . | . . . . . Follow-up Attacks 5 | . . . 3 2 Damage Inflicted 2196 | 222 565 606 544 259 Guns 258 | 183 75 . . . Cannons 606 | . . 606 . . Explosions 529 | 39 490 . . . Melee 750 | . . . 544 206 Ramming 53 | . . . . 53 Kinetic . | . . . . . Thermal 645 | 39 . 606 . . Explosive 490 | . 490 . . . Electromagnetic 258 | 183 75 . . . Impact 750 | . . . 544 206 Slashing . | . . . . . Piercing . | . . . . . Highest Corruption . | . . . . . Average Corruption . | . . . . . Corruption Purged . | . . . . . Corruption Blocked . | . . . . . Overload Shots . | . . . . . Overflow Damage 168 | . 6 . 162 . Projectiles . | . . . . . Explosions 6 | . 6 . . . Melee 162 | . . . 162 . Knockbacks 2 | . . . . 2 Impact 2 | . . . . 2 Kinetic . | . . . . . Secondary . | . . . . . Self-Inflicted Damage 59 | 35 . . . 24 Shots 1 | 1 . . . . Rammed 14 | . . . . 14 Targets Rammed 14 | . . . . 14 Kicked . | . . . . . Crushed . | . . . . . Highest Temperature 511 | 92 64 511 . . Average Temperature 107 | 38 24 148 . . Received Heat Transfer 510 | . 87 252 . 171 Effects 3 | . . 3 . . Shutdowns 1 | . . 1 . . Interference 1 | . . 1 . . Damage (major) 1 | . . 1 . . Siege Activations . | . . . . . Robots Corrupted . | . . . . . Combat Hostiles . | . . . . . Parts Fried 6 | 1 . . 5 . Impact Corruptions 11 | . . . 11 . Robots Melted . | . . . . . Combat Hostiles . | . . . . . Parts Melted 5 | . . 5 . . Heat Transferred 1221 | . . 1221 . . Parts Sabotaged . | . . . . . Parts Stolen . | . . . . . Parts Stripped . | . . . . . Power Chain Reactions 1 | 1 . . . . Alert | -11 -10 -9 -9 -8 ------- Run | Yrd Mat Mat Min Mat Peak Influence 315 | 20 315 147 182 130 Initial 132 | . 13 132 57 70 Average 82 | 5 59 92 106 92 Maximum Alert Level 1 | . 1 . . . Low Security (%) 98 | 100 92 100 100 100 Level 1 1 | . 7 . . . Level 2 . | . . . . . Level 3 . | . . . . . Level 4 . | . . . . . Level 5 . | . . . . . High Security . | . . . . . Max Security . | . . . . . Squads Dispatched 8 | . 1 4 . 3 Investigation 3 | . . 2 . 1 Extermination . | . . . . . Reinforcement 5 | . 1 2 . 2 Assault . | . . . . . Garrison . | . . . . . Intercept . | . . . . . Searches Triggered . | . . . . . Construction Impeded . | . . . . . Haulers Reinforced . | . . . . . Active Scanning Responses . | . . . . . Cargo Convoy Interrupts . | . . . . . Stealth | -11 -10 -9 -9 -8 --------- Run | Yrd Mat Mat Min Mat Distress Signals 5 | . 1 2 . 2 Communications Jammed . | . . . . . Distress Signals . | . . . . . Times Spotted 47 | . 14 13 8 12 Peak Tracking Total 7 | . 7 4 4 7 Tactical Retreats 3 | . . . 1 2 Traps | -11 -10 -9 -9 -8 ------- Run | Yrd Mat Mat Min Mat Traps Triggered 2 | . 2 . . . Indirectly . | . . . . . Trap Hack Attempts . | . . . . . Triggered . | . . . . . Disarmed . | . . . . . Reprogrammed . | . . . . . Reused . | . . . . . Traps Extracted . | . . . . . Installed . | . . . . . Triggered . | . . . . . Machines | -11 -10 -9 -9 -8 ---------- Run | Yrd Mat Mat Min Mat Machines Disabled 2 | . 2 . . . Max in Single Turn 2 | . 2 . . . Machines Repaired . | . . . . . Machines Dismantled . | . . . . . Machines Sabotaged . | . . . . . Overloaded Fab Kills . | . . . . . Hacking | -11 -10 -9 -9 -8 --------- Run | Yrd Mat Mat Min Mat Machines Accessed 6 | . 1 3 . 2 Terminals 5 | . 1 3 . 1 Fabricators . | . . . . . Repair Stations . | . . . . . Recycling Units . | . . . . . Scanalyzers 1 | . . . . 1 Garrison Access . | . . . . . Total Hacks 18 | . 4 9 . 5 Successful 12 | . 3 6 . 3 Failed 6 | . 1 3 . 2 Catastrophic 1 | . . . . 1 Database Lockouts . | . . . . . Manual 4 | . . 4 . . Terminals 15 | . 4 9 . 2 Fabricators . | . . . . . Repair Stations . | . . . . . Recycling Units . | . . . . . Scanalyzers 3 | . . . . 3 Garrison Access . | . . . . . Terminal Hacks 8 | . 3 4 . 1 Record 1 | . 1 . . . Alert Level 2 | . . 1 . 1 Unreport Threat 1 | . . 1 . . Dispatch Records 1 | . 1 . . . Security Status 1 | . . 1 . . Registered Components 1 | . 1 . . . Zone Layout 1 | . . 1 . . Fabricator Hacks . | . . . . . Repair Station Hacks . | . . . . . Recycling Unit Hacks . | . . . . . Scanalyzer 2 | . . . . 2 Insert Component 1 | . . . . 1 Analyze 1 | . . . . 1 Garrison Access Hacks . | . . . . . Unauthorized Hacks 2 | . . 2 . . Terminals 2 | . . 2 . . Botnet 2 | . . 2 . . Fabricators . | . . . . . Repair Stations . | . . . . . Recycling Units . | . . . . . Scanalyzers . | . . . . . Garrison Access . | . . . . . Data Cores Recovered . | . . . . . Used . | . . . . . Hacking Detections 4 | . . 2 . 2 Full Trace Events 3 | . . 2 . 1 Feedback Events . | . . . . . Feedback Blocked . | . . . . . Robot Schematics Acquired . | . . . . . Robots Built . | . . . . . Authchips . | . . . . . Time . | . . . . . Total Robot Build Rating . | . . . . . Part Schematics Acquired 1 | . . . . 1 Parts Built . | . . . . . Authchips . | . . . . . Time . | . . . . . Total Part Build Rating . | . . . . . Parts Repaired . | . . . . . Time . | . . . . . Parts Recycled . | . . . . . Recycled Matter . | . . . . . Retrieved Matter . | . . . . . Retrieved Components . | . . . . . Parts Scanalyzed 1 | . . . . 1 Part Schematics Acquired 1 | . . . . 1 Parts Damaged . | . . . . . Bothacking | -11 -10 -9 -9 -8 ------------ Run | Yrd Mat Mat Min Mat Used RIF Installer . | . . . . . Robots Hacked . | . . . . . Non-combat . | . . . . . Combat . | . . . . . Robot Hacks Applied . | . . . . . Relay Couplers Released . | . . . . . Fabnet Peak Effective % . | . . . . . Robots Rewired . | . . . . . Allies Hacked . | . . . . . Hacks Repelled . | . . . . . Allies | -11 -10 -9 -9 -8 -------- Run | Yrd Mat Mat Min Mat Total Allies . | . . . . . Largest Group . | . . . . . Highest-Rated Group . | . . . . . Highest-Rated Ally . | . . . . . Total Orders . | . . . . . Ally Attacks . | . . . . . Total Damage . | . . . . . Kills . | . . . . . Allies Corrupted . | . . . . . Allies Melted . | . . . . . Intel | -11 -10 -9 -9 -8 ------- Run | Yrd Mat Mat Min Mat Robot Analysis Total . | . . . . . Derelict Logs Recovered 1 | . . . 1 . Drone Launches . | . . . . . Drone Recoveries . | . . . . . Exploration | -11 -10 -9 -9 -8 ------------- Run | Yrd Mat Mat Min Mat Turns Passed 1482 | 154 217 598 378 135 Spaces Moved 1168 | 104 178 410 371 105 Core 56 | 23 . . 4 29 Treads . | . . . . . Legs . | . . . . . Wheels 1112 | 81 178 410 367 76 Hover . | . . . . . Flight . | . . . . . Fastest Speed 50 | 50 90 86 80 50 Average Speed 90 | 96 96 92 83 93 Slowest Speed 200 | 200 100 100 200 100 Overloaded Moves . | . . . . . Propulsion Burnouts . | . . . . . Robots Hopped . | . . . . . Cave-ins Triggered . | . . . . . Exploration Rate (%) 31 | 5 36 30 69 15 Regions Visited 4 Branch Regions 1 Pre-discovered Areas . | . . . . . Known Exits Taken . | . . . . . Unknown Exits Taken 4 | 1 1 1 1 . Scrap Searched 2 | . . . 2 . Spaces Dug . | . . . . . Terrain Destroyed 80 | . 80 . . . Melee . | . . . . . Projectile . | . . . . . AOE 80 | . 80 . . . Terrain Rammed . | . . . . . Walls Destroyed . | . . . . . Machines Disabled . | . . . . . Actions | -11 -10 -9 -9 -8 --------- Run | Yrd Mat Mat Min Mat Total 1443 | 135 205 563 411 129 Wait 89 | . . 86 2 1 Move 1164 | 103 177 409 370 105 Hop . | . . . . . Pick Up 38 | 12 8 14 4 . Fast Attach 6 | 3 1 1 1 . Attach 14 | 4 3 4 2 1 Detach . | . . . . . Swap 14 | . 1 7 6 . Drop 18 | 2 4 9 3 . Fire 55 | 11 11 33 . . Melee 31 | . . . 23 8 Ram 14 | . . . . 14 Kick . | . . . . . Crush . | . . . . . Escape Stasis . | . . . . . Rewire . | . . . . . Trap . | . . . . . Miscellaneous . | . . . . . Route ------- -11/Scrapyard -10/Materials -9/Materials -9/Mines (discovered 2 exits: *Mat x2) -8/Materials History --------- Turn | Location | Event 31 | -11/Scrapyard | Discovered new exit (range 16) 155 | -11/Scrapyard | Entered Materials 316 | -10/Materials | Build established: Mutant 342 | -10/Materials | Discovered new exit (range 16) 372 | -10/Materials | Entered another Materials area 372 | -9/Materials | Evolved 2 slots: Propulsion x1, Utility x1 941 | -9/Materials | Discovered new exit (range 18) 970 | -9/Materials | Entered Mines 1007 | -9/Mines | A weapon hastily lodged in a ceiling crevice suddenly fell to the ground 1050 | -9/Mines | Discovered new exit (range 9) 1258 | -9/Mines | Core integrity fell below 50% 1304 | -9/Mines | Lost 5 parts (1p3n1u) 1309 | -9/Mines | Discovered new exit (range 11) 1318 | -9/Mines | Learned 2 Materials zone layouts 1323 | -9/Mines | Found a damaged Exp. Sensor Array with a note attached 1325 | -9/Mines | Found Prototype Device 1326 | -9/Mines | Identified Exp. Sensor Array 1348 | -9/Mines | Entered Materials 1348 | -8/Materials | Evolved 2 slots: Power x1, Propulsion x1 1455 | -8/Materials | Lost 3 parts (1p1n1w) 1472 | -8/Materials | Core integrity fell below 50% 1477 | -8/Materials | Core integrity fell below 20% 1483 | -8/Materials | Destroyed by G-47 Trooper with Particle Gun Last Messages --------------- Slug penetrates Nuclear Reactor. Slammed into H-55 Commando. G-47 Trooper destroyed. Slug penetrates Wall. Exp. Sensor Array destroyed. Slammed into H-55 Commando. Penetrated by Slug. Slammed into H-55 Commando. K-01 Serf collects debris. Slammed into H-55 Commando. Slug penetrates Earth. Slammed into H-55 Commando. K-01 Serf collects debris. Critical hit (Burn: +37). Slammed into H-55 Commando. U-05 Engineer builds a Wall. Slammed into H-55 Commando. Destabilizing: System interference. Terrain Scan Processor temporarily disabled. Slammed into H-55 Commando. Map ----- +----------------------------------------------------+ | ???????????????????????????????????? | | ??????????????????????????#######??? | | ??????????????????????????# #### | | ??????????????????????????# | | ??????????????????????????# | | ??????????????????????????# | | ??????????????????????????# #### | | ??????????????????????????## ##??? | | ???????????????????????????# #???? | | ???????????????????????????# #???? | | ?# ## # #??????????# #???? | | ?# ## """ # #??????????# #???? | | ?# ## """ # #########??# #???? | | ?# ## """ # # T?## ##??? | | ?# ## # # ?# #### | | ?# ## # # # | | ?# ######+## # """ """ + | | ?# #??# + """ """ # | | ?# #??# ###### """ """?# #### | | ?####/#??# #????# ?## ##??? | | ????# #### ###??# ??# #???? | | ????# ## o ############### #???? | | ????# ## %% #???? | | ????# % % % #???? | | ????#### % % u #???? | | ???????# @ ######## #???? | | ???????###+#h %[g% ! #?????# #???? | | ???????# !=%[*%= #????# #???? | | ???????# * ! [ #???# #???? | | ???????# ##???# #???? | | ???????# #????? #???? | | ???????# ####??? #???? | | ???????# ??? #???? | | ???????# # # ??? #???? | | ???????# ###### ??? #???? | | ???????# ?????? ??? #???? | | ???????#####?????? ??? #???? | | ?????????????????? ???????????? | | ?????????????????? ??????????????? | | ???????????????????????????????????? | | ???????????????????????????????????? | | ???????????????????????????????????? | | ???????????????????????????????????? | | ???????????????????????????????????? | | ???????????????????????????????????? | | ???????????????????????????????????? | | ???????????????????????????????????? | | ???????????????????????????????????? | | ???????????????????????????????????? | | ???????????????????????????????????? | +----------------------------------------------------+ Best States ------------- Heat Dissipation 50 Energy Generation 14 Energy Capacity 280 Matter Stores 300 Matter Capacity 300 Sight Range 16 Robot Scan Range 20 Terrain Scan Range 16 Terrain Scan Density 160 Evasion (%) 50 Item Schematics ----------------- Mace | -8/Materials | Scanalyzed Robot Schematics ------------------ None Fabricated ------------ Nothing Alien Tech Used ----------------- None Achievements -------------- None Challenges ------------ None Game ------ Seed SuspensionGammaPendant Manual? 0 Play Time 00:25:23 Cumulative 3.3 hours Start 2024.03.17 @ 15:07:47 End 2024.03.17 @ 15:34:10 Sessions 1 Manual Loads 0 Difficulty Rogue Special Mode None Game No. 6 Rogue 6 Adventurer 0 Explorer 0 Win Type - Total 0 Types 0/0/0/0/0/0/0/0/0 Lore% 3 Gallery% 6 Achievement% 7 Wizard Run 0 Options --------- Layout 1 ASCII 0 Keyboard 0 Movement Numpad Keybinds 0 Fullscreen 1 Font 32/SmallcapsGlow Map View 50x35 Zoom Use 0% Tactical HUD 0 Map Filters NONE Filters NONE Steam 1 RUN: e3b47169-7f05-42aa-8143-0bb64cb8ff20